bitfinex/quotes_BTCUSD_20250718
["timestamp","ask_amount","ask_price","bid_price","bid_amount"]
[1752845185752,0.37710952,118840.0,118830.0,0.18563419]
[1752845185961,0.95586934,118840.0,118830.0,0.16880371]
[1752845186185,0.94745488,118840.0,118830.0,0.16880371]
[1752845186397,0.95586941,118840.0,118830.0,0.17721895]
[1752845186601,0.95586941,118840.0,118830.0,0.17721902]
[1752845186846,0.94745488,118840.0,118830.0,0.20246445]
[1752845187063,0.94745488,118840.0,118830.0,0.20246453]
[1752845187268,0.95586934,118840.0,118830.0,0.20246453]
[1752845187686,0.96428394,118840.0,118830.0,0.19404943]
[1752845187896,0.95586934,118840.0,118830.0,0.19404943]
[1752845188135,0.96428394,118840.0,118830.0,0.19404943]
[1752845188351,0.96428451,118840.0,118830.0,0.18563426]
[1752845188571,0.96428451,118840.0,118830.0,0.16880371]
[1752845188777,1.37162677,118840.0,118830.0,0.00049605]
[1752845188990,0.93062681,118840.0,118830.0,0.00049605]
[1752845189205,1.36321217,118840.0,118830.0,0.00049605]
[1752845191266,1.39001594,118840.0,118830.0,0.00049605]
[1752845192399,1.36321217,118840.0,118830.0,0.00049605]
[1752845192629,0.49804145,118840.0,118830.0,0.00049605]
[1752845192865,1.44321217,118840.0,118830.0,0.00049605]
[1752845194878,1.44287726,118840.0,118830.0,0.00049605]
[1752845204987,1.62807726,118840.0,118830.0,0.00049605]
[1752845205563,0.35782809,118840.0,118830.0,0.21276369]
[1752845205779,0.2692,118840.0,118830.0,0.29890947]
[1752845205975,0.2692,118840.0,118830.0,0.33430947]
[1752845205976,0.40624,118840.0,118830.0,0.33430947]
[1752845206814,0.70178536,118840.0,118830.0,0.29890947]
[1752845207060,0.76723939,118840.0,118830.0,0.29890947]
[1752845207272,0.75882536,118840.0,118830.0,0.29890947]
[1752845209701,0.76723946,118840.0,118830.0,0.21314985]
[1752845210125,0.76723953,118840.0,118830.0,0.21065985]
[1752845210327,0.75882536,118840.0,118830.0,0.21065985]
[1752845210526,0.93553303,118840.0,118830.0,0.21065985]
[1752845210733,0.76723953,118840.0,118830.0,0.21065985]
[1752845210937,0.76723946,118840.0,118830.0,0.21065985]
[1752845211353,0.76723946,118840.0,118830.0,0.25433012]
[1752845211561,0.94394706,118840.0,118830.0,0.25433012]
[1752845211992,0.96077591,118840.0,118830.0,0.19382987]
[1752845212206,1.39540127,118840.0,118830.0,0.0171069]
[1752845212421,1.53082335,118840.0,118830.0,0.00049605]
[1752845212632,1.55608635,118840.0,118830.0,0.00049605]
[1752845212853,1.54767203,118840.0,118830.0,0.00049605]
[1752845213260,1.54767203,118840.0,118830.0,0.0150369]
[1752845213471,1.12350099,118840.0,118830.0,0.18334456]
[1752845213680,1.12350099,118840.0,118830.0,0.19175987]
[1752845213895,1.12350099,118840.0,118830.0,0.18334456]
[1752845214115,1.12350099,118840.0,118830.0,0.19175987]
[1752845214323,0.6909152,118840.0,118830.0,0.19175987]
[1752845214540,0.70774419,118840.0,118830.0,0.19175987]
[1752845214779,1.14032955,118840.0,118830.0,0.20017511]
[1752845214996,0.69091534,118840.0,118830.0,0.18334456]
[1752845215215,0.69091527,118840.0,118830.0,0.24953256]
[1752845215454,0.68250095,118840.0,118830.0,0.20228497]
[1752845215669,0.69932959,118840.0,118830.0,0.21911508]
[1752845215886,0.71615872,118840.0,118830.0,0.21070028]
[1752845216102,0.71615872,118840.0,118830.0,0.20228511]
[1752845216311,0.70774455,118840.0,118830.0,0.19386987]
[1752845216553,0.70774455,118840.0,118830.0,0.0171469]
[1752845216758,1.14032991,118840.0,118830.0,0.02556228]
[1752845216971,1.14032991,118840.0,118830.0,0.03608143]
[1752845217221,1.14032991,118840.0,118830.0,0.02766612]
[1752845217436,1.14032991,118840.0,118830.0,0.03397143]
[1752845217644,1.14032991,118840.0,118830.0,0.20227909]
[1752845217863,1.14032991,118840.0,118830.0,0.18334456]
[1752845218074,1.13191524,118840.0,118830.0,0.20017525]
[1752845218280,1.14032984,118840.0,118830.0,0.20859049]
[1752845218497,1.14032984,118840.0,118830.0,0.20017518]
[1752845218672,1.14032984,118840.0,118830.0,0.20017525]
[1752845219101,1.14032984,118840.0,118830.0,0.20859049]
[1752845219307,1.14032984,118840.0,118830.0,0.02345228]
[1752845219516,1.13191559,118840.0,118830.0,0.03397143]
[1752845219754,1.13191559,118840.0,118830.0,0.20227909]
[1752845219959,1.12350099,118840.0,118830.0,0.20859035]
[1752845220173,1.13191566,118840.0,118830.0,0.21700566]
[1752845220384,1.12350099,118840.0,118830.0,0.20859049]
[1752845220586,1.13191566,118840.0,118830.0,0.20859049]
[1752845220802,1.12346099,118840.0,118830.0,0.20859035]
[1752845221025,0.384363,118840.0,118830.0,0.30794792]
[1752845221227,0.3262,118840.0,118830.0,0.30794792]
[1752845221688,0.58080206,118840.0,118830.0,0.26070035]
[1752845221893,0.58080206,118840.0,118830.0,0.27542032]
[1752845222098,0.40409417,118840.0,118830.0,0.27753025]
[1752845222320,0.4040941,118840.0,118830.0,0.27753025]
[1752845222523,0.40409417,118840.0,118830.0,0.27753025]
[1752845222742,0.40409403,118840.0,118830.0,0.27753025]
[1752845223369,0.40409403,118840.0,118830.0,0.31400033]
[1752845223586,0.3905,118840.0,118830.0,0.31400033]
[1752845223789,0.57562192,118840.0,118830.0,0.31400033]
[1752845223994,0.3989141,118840.0,118830.0,0.31400033]
[1752845224367,0.40732835,118840.0,118830.0,0.31400033]
[1752845224568,0.3905,118840.0,118830.0,0.31400033]
[1752845224817,0.3582,118840.0,118830.0,0.31400033]
[1752845225069,0.3262,118840.0,118830.0,0.31400033]
[1752845225914,0.33461417,118840.0,118830.0,0.31400033]
[1752845226152,0.3651141,118840.0,118830.0,0.26911523]
[1752845226828,0.78928536,118840.0,118830.0,0.26911523]
[1752845227043,0.387,118840.0,118830.0,0.26911523]
[1752845227505,0.3567,118840.0,118830.0,0.26911523]
[1752845227738,0.0345,118840.0,118830.0,0.26911523]
[1752845227955,0.141,118840.0,118830.0,0.31589783]
[1752845228196,0.004,118840.0,118830.0,0.78388319]
[1752845228418,0.141,118840.0,118830.0,0.78388319]
[1752845228865,0.141,118840.0,118830.0,1.12388319]
[1752845229095,0.141,118840.0,118830.0,1.20939347]
[1752845230048,0.14,118840.0,118830.0,1.20939347]
[1752845230273,0.137,118840.0,118830.0,0.77780811]
[1752845230492,0.137,118840.0,118830.0,1.21039347]
[1752845231122,0.137,118840.0,118830.0,0.77780811]
[1752845231368,0.137,118840.0,118830.0,0.69229783]
[1752845231571,0.137,118840.0,118830.0,0.65440783]
[1752845231954,0.137,118840.0,118830.0,0.65689783]
[1752845232284,0.20408,118840.0,118830.0,0.59557438]
[1752845232750,0.20408,118840.0,118830.0,0.61011523]
[1752845233166,0.20094,118840.0,118830.0,0.61011523]
[1752845233368,0.1989,118840.0,118830.0,0.61011523]
[1752845236454,0.2124941,118840.0,118830.0,0.61011523]
[1752845236674,0.21249403,118840.0,118830.0,0.26800523]
[1752845236899,0.20408,118840.0,118830.0,0.26800523]
[1752845237140,0.20408,118840.0,118830.0,0.27011523]
[1752845237574,0.20408,118840.0,118830.0,0.31425883]
[1752845238024,0.1989,118840.0,118830.0,0.31425883]
[1752845238228,0.137,118840.0,118830.0,0.31425883]
[1752845239293,0.06634,118850.0,118840.0,0.20807751]
[1752845239518,0.20534,118850.0,118840.0,0.20807751]
[1752845239743,0.39044649,118850.0,118840.0,0.19966334]
[1752845239949,0.39044642,118850.0,118840.0,0.20807751]
[1752845240433,0.39044642,118850.0,118840.0,0.19966334]
[1752845240625,0.47044642,118850.0,118840.0,0.20807751]
[1752845240738,0.47044649,118850.0,118840.0,0.21649183]
[1752845240943,0.47044649,118850.0,118840.0,0.20807766]
[1752845241148,0.47044649,118850.0,118840.0,0.21649191]
[1752845241769,0.47044649,118850.0,118840.0,0.19966334]
[1752845241947,0.47044649,118850.0,118840.0,0.20807766]
[1752845242165,0.47886031,118850.0,118840.0,0.19124895]
[1752845242379,0.46203281,118850.0,118840.0,0.21649183]
[1752845242593,0.47044649,118850.0,118840.0,0.20807766]
[1752845242826,0.90303185,118850.0,118840.0,0.19124902]
[1752845243025,0.90303185,118850.0,118840.0,0.19966355]
[1752845243026,0.91244574,118850.0,118840.0,0.19966355]
[1752845243425,0.91244574,118850.0,118840.0,0.01454085]
[1752845243627,0.89561859,118850.0,118840.0,0.01454085]
[1752845243844,0.90403227,118850.0,118840.0,0.18283435]
[1752845244051,0.90403227,118850.0,118830.0,0.05049605]
[1752845244052,0.25082242,118840.0,118830.0,0.05049605]
[1752845244262,0.76561367,118840.0,118830.0,0.05049605]
[1752845244477,0.85137329,118840.0,118830.0,0.05049605]
[1752845245266,0.76561367,118840.0,118830.0,0.05049605]
[1752845245684,0.76561367,118840.0,118830.0,0.05149605]
[1752845247289,0.79087767,118840.0,118830.0,0.05149605]
[1752845247756,0.79287767,118840.0,118830.0,0.05049605]
[1752845248255,0.79387767,118840.0,118830.0,0.05049605]
[1752845251333,0.36129231,118840.0,118830.0,0.05049605]
[1752845251579,0.79387767,118840.0,118830.0,0.05049605]
[1752845253148,0.36129231,118840.0,118830.0,0.05049605]
[1752845253348,0.79387767,118840.0,118830.0,0.05049605]
[1752845254262,0.36129231,118840.0,118830.0,0.05049605]
[1752845254473,0.79387767,118840.0,118830.0,0.05049605]
[1752845254700,0.36129231,118840.0,118830.0,0.05049605]
[1752845254917,0.79387767,118840.0,118830.0,0.05049605]
[1752845256603,0.36129231,118840.0,118830.0,0.05049605]
[1752845256796,0.78546314,118840.0,118830.0,0.05049605]
[1752845260321,0.35287778,118840.0,118830.0,0.05049605]
[1752845260526,0.37812116,118840.0,118830.0,0.24098401]
[1752845260742,0.37812116,118840.0,118830.0,0.26916523]
[1752845260743,0.31639428,118840.0,118830.0,0.26916523]
[1752845260953,0.13992,118840.0,118830.0,0.26916523]
[1752845261162,0.13992,118840.0,118830.0,0.27165523]
[1752845261631,0.13992,118840.0,118830.0,0.30705523]
[1752845262276,0.13892,118840.0,118830.0,0.30705523]
[1752845262492,0.13892,118840.0,118830.0,0.39281485]
[1752845263198,0.002,118840.0,118830.0,0.39281485]
[1752845263416,0.002,118840.0,118830.0,0.91091049]
[1752845263625,0.13888,118840.0,118830.0,0.91091049]
[1752845265007,0.13688,118840.0,118830.0,0.91091049]
[1752845265703,0.13788,118840.0,118830.0,0.91091049]
[1752845268510,0.001,118840.0,118830.0,0.91091049]
[1752845268669,0.13788,118840.0,118830.0,0.47832513]
[1752845269043,0.13788,118840.0,118830.0,0.91091049]
[1752845270269,0.001,118840.0,118830.0,0.91091049]
[1752845270808,0.13784,118840.0,118830.0,0.91091049]
[1752845271015,0.001,118840.0,118830.0,0.91091049]
[1752845271646,0.13784,118840.0,118830.0,0.47832513]
[1752845271867,0.13784,118840.0,118830.0,0.91091049]
[1752845272938,0.13784,118840.0,118830.0,0.47832513]
[1752845274743,0.13784,118840.0,118830.0,0.44292513]
[1752845275267,0.001,118840.0,118830.0,0.47832513]
[1752845275516,0.13784,118840.0,118830.0,0.47832513]
[1752845275724,0.13784,118840.0,118830.0,0.91091049]
[1752845276339,0.13784,118840.0,118830.0,0.47832513]
[1752845276538,0.13784,118840.0,118830.0,0.91091049]
[1752845277412,0.13784,118840.0,118830.0,0.44292513]
[1752845278809,0.13784,118840.0,118830.0,0.91091049]
[1752845279892,0.13684,118840.0,118830.0,0.91091049]
[1752845280089,0.13684,118840.0,118830.0,0.47832513]
[1752845280286,0.06687,118860.0,118850.0,0.18864038]
[1752845280501,0.0667,118870.0,118860.0,0.19350409]
[1752845280781,0.0667,118870.0,118860.0,0.21017494]
[1752845281225,0.1467,118870.0,118860.0,0.21017494]
[1752845281912,0.15189,118870.0,118860.0,0.21017494]
[1752845282346,0.28869,118870.0,118860.0,0.21017494]
[1752845282554,0.28869,118870.0,118860.0,0.25442192]
[1752845283192,0.72127536,118870.0,118860.0,0.25442192]
[1752845283441,0.72968727,118870.0,118860.0,0.20804494]
[1752845283655,0.28869,118870.0,118860.0,0.20804494]
[1752845284327,0.28869,118870.0,118860.0,0.21017494]
[1752845284811,0.28877,118870.0,118860.0,0.21017494]
[1752845285064,0.28977,118870.0,118860.0,0.2940088]
[1752845285524,0.28977,118870.0,118860.0,0.21017494]
[1752845285744,0.28458,118870.0,118860.0,0.21017494]
[1752845286035,0.1155,118870.0,118860.0,0.6452503]
[1752845286258,0.22092,118870.0,118860.0,0.21266494]
[1752845286484,0.22092,118870.0,118860.0,0.6452503]
[1752845286712,0.22092,118870.0,118860.0,0.73100992]
[1752845286922,0.14092,118870.0,118860.0,0.73100992]
[1752845287133,0.17412,118870.0,118860.0,0.72851992]
[1752845287347,0.0372,118870.0,118860.0,0.72851992]
[1752845287576,0.0694,118870.0,118860.0,0.29593456]
[1752845287794,0.52399939,118870.0,118860.0,0.20804494]
[1752845288011,0.52399939,118870.0,118850.0,0.21381091]
[1752845288012,0.08212552,118860.0,118850.0,0.18510642]
[1752845288238,0.50831798,118860.0,118850.0,0.19352024]
[1752845288494,0.20749,118860.0,118850.0,0.20806109]
[1752845288707,0.20749,118860.0,118850.0,0.24653669]
[1752845288922,0.20749,118860.0,118850.0,0.24866669]
[1752845289597,0.20749,118860.0,118850.0,0.21019109]
[1752845291026,0.20749,118860.0,118850.0,0.20806109]
[1752845291249,0.01982396,118870.0,118860.0,0.19350409]
[1752845291250,0.0676,118870.0,118860.0,0.19350409]
[1752845291488,0.20496,118870.0,118860.0,0.6427603]
[1752845291992,0.20496,118870.0,118860.0,0.21017494]
[1752845292258,0.20496,118870.0,118860.0,0.29593456]
[1752845292745,0.0676,118870.0,118860.0,0.72851992]
[1752845295345,0.0676,118870.0,118860.0,1.06851992]
[1752845296002,0.0686,118870.0,118860.0,1.06851992]
[1752845296210,0.0686,118870.0,118860.0,0.63593456]
[1752845298033,0.07177,118870.0,118860.0,0.63593456]
[1752845298303,0.07379,118870.0,118860.0,0.63380456]
[1752845298554,0.07379,118870.0,118860.0,0.54804494]
[1752845301867,0.09061396,118870.0,118860.0,0.54804494]
[1752845302090,0.10743855,118870.0,118860.0,0.54804494]
[1752845302320,0.53161151,118870.0,118860.0,0.20804494]
[1752845302552,0.54002391,118870.0,118860.0,0.20804494]
[1752845302769,0.7853741,118870.0,118860.0,0.18509133]
[1752845303017,0.7853741,118870.0,118860.0,0.18509147]
[1752845303244,0.60870981,118870.0,118860.0,0.21645805]
[1752845303695,0.61712221,118870.0,118860.0,0.20804522]
[1752845303986,0.19294918,118870.0,118860.0,0.21645798]
[1752845304429,0.79378607,118870.0,118860.0,0.20804522]
[1752845304645,0.62553504,118870.0,118860.0,0.21645798]
[1752845304852,0.60871016,118870.0,118860.0,0.21645798]
[1752845305073,0.79378607,118870.0,118860.0,0.21645798]
[1752845305284,0.80219862,118870.0,118860.0,0.21645805]
[1752845305501,0.17612445,118870.0,118860.0,0.22487081]
[1752845305715,0.61712193,118870.0,118860.0,0.22487081]
[1752845305934,0.62553433,118870.0,118860.0,0.22487081]
[1752845306146,0.79378536,118870.0,118860.0,0.20804529]
[1752845306359,0.19294897,118870.0,118860.0,0.21645805]
[1752845306584,0.18453657,118870.0,118860.0,0.21645805]
[1752845306805,0.19294897,118870.0,118860.0,0.21645805]
[1752845307435,0.18453657,118870.0,118860.0,0.21645805]
[1752845308259,0.62553433,118870.0,118860.0,0.21645805]
[1752845308628,0.1929489,118870.0,118860.0,0.21645805]
[1752845308878,0.17612438,118870.0,118860.0,0.21645805]
[1752845309288,0.21103,118870.0,118860.0,0.25703179]
[1752845309854,0.20584,118870.0,118860.0,0.25703179]
[1752845311150,0.07379,118870.0,118860.0,0.25703179]
[1752845311355,0.21087,118870.0,118860.0,0.25703179]
[1752845312449,0.21928198,118870.0,118860.0,0.24861903]
[1752845312674,0.8369431,118870.0,118860.0,0.19121921]
[1752845312912,0.8369431,118870.0,118860.0,0.01454085]
[1752845313140,0.91404133,118870.0,118860.0,0.18280603]
[1752845313349,0.72904564,118870.0,118860.0,0.20804529]
[1752845313559,0.31328459,118870.0,118860.0,0.21645805]
[1752845313783,0.31328445,118870.0,118860.0,0.21645805]
[1752845313990,0.21095,118870.0,118860.0,0.25577314]
[1752845314413,0.07379,118870.0,118860.0,0.25787314]
[1752845314845,0.20596,118870.0,118860.0,0.6904585]
[1752845315529,0.20596,118870.0,118860.0,0.25787314]
[1752845315980,0.21115,118870.0,118860.0,0.25787314]
[1752845316199,0.21115,118870.0,118860.0,0.21645805]
[1752845316511,0.21115,118870.0,118860.0,0.26645805]
[1752845317673,0.21956205,118870.0,118860.0,0.26645805]
[1752845318322,0.21956198,118870.0,118860.0,0.26645805]
[1752845318534,0.21115,118870.0,118860.0,0.26645805]
[1752845318745,0.21956198,118870.0,118860.0,0.26645805]
[1752845319382,0.21115,118870.0,118860.0,0.26645805]
[1752845319721,0.21115,118870.0,118860.0,0.26855805]
[1752845319927,0.20596,118870.0,118860.0,0.26855805]
[1752845320765,0.20596,118870.0,118860.0,0.70114341]
[1752845320766,0.17376,118870.0,118860.0,0.70114341]
[1752845320929,0.14136,118870.0,118860.0,0.78939303]
[1752845321874,0.17246,118870.0,118860.0,0.78939303]
[1752845322081,0.14136,118870.0,118860.0,0.78939303]
[1752845322624,0.14136,118870.0,118860.0,0.87490331]
[1752845322853,0.14136,118870.0,118860.0,0.91030331]
[1752845323280,0.004,118870.0,118860.0,0.89660331]
[1752845323454,0.004,118870.0,118860.0,0.91030331]
[1752845324261,0.003,118870.0,118860.0,0.89660331]
[1752845324818,0.003,118870.0,118860.0,0.91130331]
[1752845325025,0.003,118870.0,118860.0,0.89760331]
[1752845325234,0.003,118870.0,118860.0,0.44331795]
[1752845325441,0.0656,118870.0,118860.0,0.35406833]
[1752845325647,0.07079,118870.0,118860.0,0.26855805]
[1752845325853,0.07079,118870.0,118860.0,0.27455805]
[1752845326205,0.0656,118870.0,118860.0,0.27455805]
[1752845327027,0.0347,118870.0,118860.0,0.79290303]
[1752845327246,0.003,118870.0,118860.0,0.79539303]
[1752845327820,0.0347,118870.0,118860.0,0.79539303]
[1752845328024,0.0347,118870.0,118860.0,0.79290303]
[1752845328237,0.0662,118870.0,118860.0,0.36031767]
[1752845329079,0.2036,118870.0,118860.0,0.36031767]
[1752845329695,0.2036,118870.0,118860.0,0.79290303]
[1752845331826,0.1404,118870.0,118860.0,0.79539303]
[1752845332171,0.1713,118870.0,118860.0,0.79539303]
[1752845332370,0.1404,118870.0,118860.0,0.79539303]
[1752845332954,0.1732,118870.0,118860.0,0.79539303]
[1752845333472,0.1732,118870.0,118860.0,0.79290303]
[1752845333655,0.2032,118870.0,118860.0,0.79290303]
[1752845333878,0.2032,118870.0,118860.0,0.36031767]
[1752845334106,0.20831,118870.0,118860.0,0.36031767]
[1752845334314,0.20831,118870.0,118860.0,0.27245805]
[1752845334517,0.20831,118870.0,118860.0,0.2579172]
[1752845334663,0.20831,118870.0,118860.0,0.27245805]
[1752845337392,0.20831,118870.0,118860.0,0.61245805]
[1752845338058,0.20831,118870.0,118860.0,0.69821767]
[1752845338495,0.14,118870.0,118860.0,1.28787459]
[1752845338954,0.2027,118870.0,118860.0,0.78568795]
[1752845339171,0.20072,118870.0,118860.0,0.78568795]
[1752845339375,0.0638,118870.0,118860.0,1.21827331]
[1752845339800,0.0338,118870.0,118860.0,1.21827331]
[1752845340006,0.1708,118870.0,118860.0,1.21827331]
[1752845340250,0.003,118870.0,118860.0,1.22076331]
[1752845340461,0.033,118880.0,118870.0,0.54802867]
[1752845340668,0.17,118880.0,118870.0,0.99792611]
[1752845341093,0.0612,118900.0,118890.0,0.53116163]
[1752845341300,0.16816,118900.0,118890.0,0.97660756]
[1752845341518,0.20327,118900.0,118890.0,0.62533182]
[1752845341734,0.20327,118900.0,118890.0,0.62548189]
[1752845342395,0.20323,118900.0,118890.0,0.62548189]
[1752845342604,0.21163986,118900.0,118890.0,0.63389295]
[1752845342833,0.9231747,118900.0,118890.0,0.18290092]
[1752845343053,0.9231747,118900.0,118890.0,0.20813361]
[1752845343265,0.74655571,118900.0,118890.0,0.21654425]
[1752845343470,0.75596599,118900.0,118890.0,0.21654425]
[1752845343614,0.92417505,118900.0,118890.0,0.1997229]
[1752845343835,0.50000011,118900.0,118890.0,0.21654439]
[1752845344049,0.92417547,118900.0,118890.0,0.20813368]
[1752845344287,0.48317969,118900.0,118890.0,0.20813368]
[1752845344490,0.48317969,118900.0,118890.0,0.19972297]
[1752845344918,0.92417547,118900.0,118890.0,0.20813375]
[1752845345130,0.47476948,118900.0,118890.0,0.00015007]
[1752845345343,0.98267861,118900.0,118890.0,0.00015007]
[1752845346220,1.00793161,118900.0,118890.0,0.00015007]
[1752845346430,0.92217199,118900.0,118890.0,0.00015007]
[1752845352359,0.50002248,118900.0,118890.0,0.00015007]
[1752845352572,0.92217199,118900.0,118890.0,0.00015007]
[1752845355201,1.16587199,118900.0,118890.0,0.00015007]
[1752845356904,0.74372248,118900.0,118890.0,0.00015007]
[1752845357105,1.16587199,118900.0,118890.0,0.00015007]
[1752845360147,1.16487199,118900.0,118890.0,0.00015007]
[1752845360607,1.16887199,118900.0,118890.0,0.00015007]
[1752845361034,1.17087199,118900.0,118890.0,0.00015007]
[1752845361550,0.74872248,118900.0,118890.0,0.00015007]
[1752845361701,1.17087199,118900.0,118890.0,0.00015007]
[1752845362161,0.74872248,118900.0,118890.0,0.00015007]
[1752845362366,1.25663161,118900.0,118890.0,0.00015007]
[1752845362764,1.17087199,118900.0,118890.0,0.00015007]
[1752845367163,1.18119927,118900.0,118890.0,0.00015007]
[1752845369974,1.04427927,118900.0,118890.0,0.00015007]
[1752845370179,0.93741927,118900.0,118890.0,0.00015007]
[1752845370389,0.50494248,118900.0,118890.0,0.00015007]
[1752845370630,0.93741927,118900.0,118890.0,0.00015007]
[1752845373810,1.02317889,118900.0,118890.0,0.00015007]
[1752845376620,0.93741927,118900.0,118890.0,0.00015007]
[1752845377565,0.96210457,118900.0,118890.0,0.00015007]
[1752845379473,0.93741927,118900.0,118890.0,0.00015007]
[1752845379723,0.91216627,118900.0,118890.0,0.00015007]
[1752845380118,0.90375599,118900.0,118890.0,0.17678392]
[1752845380345,0.90375599,118900.0,118890.0,0.00015007]
[1752845380530,0.89534564,118900.0,118890.0,0.00015007]
[1752845382664,0.98110526,118900.0,118890.0,0.00015007]
[1752845382886,0.54862847,118900.0,118890.0,0.00015007]
[1752845383106,0.98110526,118900.0,118890.0,0.00015007]
[1752845383976,0.89534564,118900.0,118890.0,0.00015007]
[1752845386836,0.92059964,118900.0,118890.0,0.00015007]
[1752845387268,0.35656327,118900.0,118890.0,0.00219007]
[1752845387506,0.92053641,118900.0,118890.0,0.17882385]
[1752845388142,0.92053641,118900.0,118890.0,0.18723484]
[1752845388784,0.48805962,118900.0,118890.0,0.19564576]
[1752845389014,0.92053641,118900.0,118890.0,0.19564576]
[1752845390233,0.90371606,118900.0,118890.0,0.17882385]
[1752845391324,0.89530564,118900.0,118890.0,0.17041279]
[1752845391661,0.89530564,118900.0,118890.0,0.17882392]
[1752845391899,0.89530564,118900.0,118890.0,0.00219007]
[1752845392109,0.89530564,118900.0,118890.0,0.00015007]
[1752845392227,0.89530564,118900.0,118890.0,0.17678392]
[1752845393494,0.89530564,118900.0,118890.0,0.18519498]
[1752845393705,0.89530564,118900.0,118890.0,0.17678392]
[1752845394306,0.89530564,118900.0,118890.0,0.00015007]
[1752845395370,0.89530564,118900.0,118890.0,0.17678392]
[1752845395491,0.89530564,118900.0,118890.0,0.0085612]
[1752845395702,0.89530564,118900.0,118890.0,0.00015007]
[1752845396583,0.2176447,118890.0,118880.0,0.01323622]
[1752845396790,0.81788149,118890.0,118880.0,0.19205505]
[1752845396992,0.90013085,118890.0,118880.0,0.01338641]
[1752845397168,0.89171979,118890.0,118880.0,0.01338641]
[1752845397395,0.89171979,118890.0,118880.0,0.00015019]
[1752845398958,0.89271979,118890.0,118880.0,0.00015019]
[1752845399351,0.460243,118890.0,118880.0,0.00015019]
[1752845399586,0.89271979,118890.0,118880.0,0.00015019]
[1752845400001,0.97847941,118890.0,118880.0,0.00015019]
[1752845400439,1.7509562,118890.0,118880.0,0.00015019]
[1752845400655,1.34629178,118890.0,118880.0,0.00015019]
[1752845400862,1.31847941,118890.0,118880.0,0.00015019]
[1752845401042,1.8329562,118890.0,118880.0,0.00015019]
[1752845401272,1.8582132,118890.0,118880.0,0.00015019]
[1752845402285,1.8562132,118890.0,118880.0,0.00015019]
[1752845402489,0.54664857,118880.0,118870.0,0.05]
[1752845402708,1.61952205,118880.0,118870.0,0.05015025]
[1752845403103,1.75628205,118880.0,118870.0,0.05015025]
[1752845404688,1.67052243,118880.0,118870.0,0.05015025]
[1752845405790,1.67352243,118880.0,118870.0,0.05015025]
[1752845406465,1.67752243,118880.0,118870.0,0.05015025]
[1752845408262,0.57986343,118870.0,118860.0,0.003]
[1752845408481,1.2397605,118870.0,118860.0,0.00304997]
[1752845408675,1.32552012,118870.0,118860.0,0.00304997]
[1752845409038,1.35078412,118870.0,118860.0,0.00304997]
[1752845409938,1.35378412,118870.0,118860.0,0.00304997]
[1752845411606,1.34878412,118870.0,118860.0,0.00304997]
[1752845412289,0.24840677,118850.0,118840.0,0.003]
[1752845412502,1.59319815,118850.0,118840.0,0.00304973]
[1752845412729,1.59634815,118850.0,118840.0,0.00304973]
[1752845412938,1.62161715,118850.0,118840.0,1e-08]
[1752845413142,1.96161715,118850.0,118840.0,1e-08]
[1752845413353,0.58833792,118830.0,118820.0,0.00048001]
[1752845413741,1.32074939,118830.0,118820.0,0.00048001]
[1752845414249,1.35641861,118830.0,118820.0,0.00048001]
[1752845415151,1.3468583,118830.0,118820.0,0.00048001]
[1752845415382,0.92394182,118830.0,118820.0,0.00048001]
[1752845415615,1.3468583,118830.0,118820.0,0.00048001]
[1752845417552,1.3518583,118830.0,118820.0,0.00048001]
[1752845418184,1.3548583,118830.0,118820.0,0.00048001]
[1752845419206,0.24886908,118810.0,118800.0,0.014]
[1752845419647,0.90615106,118810.0,118800.0,0.014]
[1752845419829,0.90930106,118810.0,118800.0,0.014]
[1752845419964,1.02940137,118810.0,118800.0,0.014]
[1752845420376,1.05480061,118810.0,118800.0,0.014]
[1752845420656,1.04470539,118810.0,118800.0,0.014]
[1752845420775,1.04770539,118810.0,118800.0,0.014]
[1752845420980,1.04870539,118810.0,118800.0,0.014]
[1752845421601,1.04870539,118810.0,118800.0,0.01339718]
[1752845424673,0.62578891,118810.0,118800.0,0.01339718]
[1752845424892,1.04870539,118810.0,118800.0,0.01339718]
[1752845425334,1.13446501,118810.0,118800.0,0.01339718]
[1752845428311,1.21446501,118810.0,118800.0,0.01339718]
[1752845430355,0.50017891,118810.0,118800.0,0.01540718]
[1752845430562,0.50017891,118810.0,118800.0,0.01789718]
[1752845430808,0.63693891,118810.0,118800.0,0.01789718]
[1752845431417,0.63693891,118810.0,118800.0,0.01540718]
[1752845431900,0.66463891,118810.0,118800.0,0.01540718]
[1752845432039,0.75039853,118810.0,118800.0,0.01540718]
[1752845432455,1.17824501,118810.0,118800.0,0.01339718]
[1752845432656,1.21054501,118810.0,118800.0,0.01339718]
[1752845434055,1.12478539,118810.0,118800.0,0.01540718]
[1752845434181,0.66463891,118810.0,118800.0,0.01540718]
[1752845435707,0.63693891,118810.0,118800.0,0.01540718]
[1752845435880,0.63693891,118810.0,118800.0,0.01789718]
[1752845436664,0.63693891,118810.0,118800.0,0.01540718]
[1752845437011,1.09734439,118810.0,118800.0,0.01540718]
[1752845437235,0.63693891,118810.0,118800.0,0.01540718]
[1752845437445,1.06994439,118810.0,118800.0,0.01540718]
[1752845437880,0.50017891,118810.0,118800.0,0.01789718]
[1752845438111,0.63693891,118810.0,118800.0,0.01789718]
[1752845438577,0.93318439,118810.0,118800.0,0.01789718]
[1752845438828,0.23791571,118810.0,118800.0,0.25233985]
[1752845439073,0.20422555,118810.0,118800.0,0.68534533]
[1752845439307,0.34098555,118810.0,118800.0,0.68534533]
[1752845439801,0.33998555,118810.0,118800.0,0.68534533]
[1752845440043,0.33698555,118810.0,118800.0,0.25233985]
[1752845440282,0.35381836,118810.0,118800.0,0.25233985]
[1752845440511,0.52315435,118810.0,118800.0,0.26075693]
[1752845440718,0.53998772,118810.0,118800.0,0.22248819]
[1752845440930,0.91530747,118810.0,118800.0,0.02994803]
[1752845441151,0.91530747,118810.0,118800.0,0.03836546]
[1752845441152,0.41147111,118810.0,118800.0,0.03836546]
[1752845441354,0.41147111,118810.0,118800.0,0.04678282]
[1752845441555,0.41147111,118810.0,118800.0,0.20671562]
[1752845442405,0.39463802,118810.0,118800.0,0.03836553]
[1752845442638,0.39463802,118810.0,118800.0,0.02994803]
[1752845442864,1.0623434,118810.0,118800.0,0.01339718]
[1752845444219,1.2475834,118810.0,118800.0,0.01339718]
[1752845444930,0.81457792,118810.0,118800.0,0.01339718]
[1752845445171,1.2475834,118810.0,118800.0,0.01339718]
[1752845445401,1.2728554,118810.0,118800.0,0.01339718]
[1752845447685,1.18709578,118810.0,118800.0,0.01339718]
[1752845449942,1.18737578,118810.0,118800.0,0.01339718]
[1752845450409,1.18725578,118810.0,118800.0,0.01339718]
[1752845450635,0.7542503,118810.0,118800.0,0.01339718]
[1752845450860,1.18725578,118810.0,118800.0,0.01339718]
[1752845451773,0.7542503,118810.0,118800.0,0.01339718]